[Event "*** Titled Tuesday Blitz"]
[Site "Chess.com"]
[Date "2020.05.05"]
[Round "3"]
[White "doons21"]
[Black "GigaQuparadze"]
[Result "0-1"]
[WhiteElo "2613"]
[BlackElo "2823"]
[TimeControl "180+1"]
[EndTime "10:28:49 PDT"]
[Termination "GigaQuparadze won by resignation"]

1. e4 {[%clk 0:03:00.9]} 1... c5 {[%clk 0:02:59.6]} 2. c3 {[%clk 0:03:00.7]}
2... d5 {[%clk 0:02:58.9]} 3. exd5 {[%clk 0:02:59.4]} 3... Qxd5 {[%clk
0:02:59.8]} 4. d4 {[%clk 0:03:00.2]} 4... Nc6 {[%clk 0:03:00.1]} 5. Nf3 {[%clk
0:03:00.6]} 5... e6 {[%clk 0:03:00.5]} 6. Bd3 {[%clk 0:02:59.7]} 6... Nf6 {[%clk
0:03:00.5]} 7. O-O {[%clk 0:02:57.4]} 7... cxd4 {[%clk 0:02:59.8]} 8. cxd4
{[%clk 0:02:56.8]} 8... Be7 {[%clk 0:02:59.6]} 9. Nc3 {[%clk 0:02:56.5]} 9...
Qd8 {[%clk 0:02:59.7]} 10. Bg5 {[%clk 0:02:51.2]} 10... O-O {[%clk 0:02:58.7]}
11. Re1 {[%clk 0:02:46.2]} 11... Nd5 {[%clk 0:02:58]} 12. Bd2 {[%clk 0:02:03.9]}
12... Ncb4 {[%clk 0:02:54.4]} 13. Bb1 {[%clk 0:02:03.1]} 13... b6 {[%clk
0:02:54.7]} 14. a3 {[%clk 0:01:59.4]} 14... Nxc3 {[%clk 0:02:53.9]} 15. bxc3
{[%clk 0:01:57.8]} 15... Nd5 {[%clk 0:02:54.8]} 16. c4 {[%clk 0:01:57.9]} 16...
Nf6 {[%clk 0:02:54.6]} 17. Bc3 {[%clk 0:01:53.4]} 17... Ba6 {[%clk 0:02:53.2]}
18. Ne5 {[%clk 0:01:53.3]} 18... Rc8 {[%clk 0:02:52.6]} 19. Qa4 {[%clk
0:01:51.3]} 19... Bb7 {[%clk 0:02:50.9]} 20. Qxa7 {[%clk 0:01:36.8]} 20... Qc7
{[%clk 0:02:50.8]} 21. Qa4 {[%clk 0:01:36.6]} 21... Bd6 {[%clk 0:02:50.7]} 22.
Bd3 {[%clk 0:01:28.5]} 22... Nd5 {[%clk 0:02:29.2]} 23. Bd2 {[%clk 0:01:24.4]}
23... Ne7 {[%clk 0:02:23]} 24. Qc2 {[%clk 0:01:13.5]} 24... Ng6 {[%clk
0:02:22.1]} 25. f4 {[%clk 0:00:50.7]} 25... Rfd8 {[%clk 0:02:19.9]} 26. Qb2
{[%clk 0:00:38.9]} 26... Nf8 {[%clk 0:02:17.6]} 27. Rad1 {[%clk 0:00:35]} 27...
f6 {[%clk 0:02:17.6]} 28. Ng4 {[%clk 0:00:34.1]} 28... Bxf4 {[%clk 0:02:16.7]}
29. Bf1 {[%clk 0:00:23.7]} 29... Bd6 {[%clk 0:02:12.5]} 30. h3 {[%clk
0:00:20.2]} 30... h5 {[%clk 0:02:11.9]} 31. Nf2 {[%clk 0:00:20.7]} 31... Bh2+
{[%clk 0:02:11.8]} 32. Kh1 {[%clk 0:00:20.6]} 32... Bg3 {[%clk 0:02:11.9]} 33.
Be3 {[%clk 0:00:20.6]} 33... Rb8 {[%clk 0:02:08]} 34. Qe2 {[%clk 0:00:20.7]}
34... h4 {[%clk 0:02:05.9]} 35. Bc1 {[%clk 0:00:20.3]} 35... Ra8 {[%clk
0:02:04.2]} 36. Rd3 {[%clk 0:00:20.5]} 36... Qxc4 {[%clk 0:02:01.3]} 37. Red1
{[%clk 0:00:20.3]} 37... Ba6 {[%clk 0:01:58]} 38. Qg4 {[%clk 0:00:20.3]} 38...
Bxf2 {[%clk 0:01:53.8]} 39. Rg3 {[%clk 0:00:18.2]} 39... Qc7 {[%clk 0:01:49.3]}
40. Rf3 {[%clk 0:00:18.3]} 40... Bg3 {[%clk 0:01:48.9]} 41. Rxf6 {[%clk
0:00:18.1]} 41... Bb7 {[%clk 0:01:42.4]} 42. Bb5 {[%clk 0:00:16.4]} 42... Rd5
{[%clk 0:01:41.5]} 43. Rdf1 {[%clk 0:00:16.2]} 43... Rf5 {[%clk 0:01:36.5]} 44.
R1xf5 {[%clk 0:00:15.3]} 44... exf5 {[%clk 0:01:37.4]} 45. Qg5 {[%clk
0:00:14.6]} 45... Rc8 {[%clk 0:01:28.5]} 46. Bb2 {[%clk 0:00:13.3]} 46... Qe7
{[%clk 0:01:26.7]} 47. Bf1 {[%clk 0:00:11.2]} 47... Qxf6 {[%clk 0:01:25.9]} 0-1

[Event "*** Titled Tuesday Blitz"]
[Site "Chess.com"]
[Date "2020.05.05"]
[Round "3"]
[White "MightyGMpretender"]
[Black "ChadBiryani"]
[Result "1-0"]
[WhiteElo "2576"]
[BlackElo "2366"]
[TimeControl "180+1"]
[EndTime "10:28:49 PDT"]
[Termination "MightyGMpretender won by resignation"]

1. Nf3 {[%clk 0:03:00.9]} 1... f5 {[%clk 0:02:56.9]} 2. d4 {[%clk 0:02:59.9]}
2... e6 {[%clk 0:02:56.3]} 3. g3 {[%clk 0:02:56.5]} 3... Nf6 {[%clk 0:02:55.9]}
4. Bg2 {[%clk 0:02:56.9]} 4... Be7 {[%clk 0:02:54.5]} 5. O-O {[%clk 0:02:57.2]}
5... O-O {[%clk 0:02:55.1]} 6. b3 {[%clk 0:02:47.7]} 6... d6 {[%clk 0:02:55]} 7.
Bb2 {[%clk 0:02:48.1]} 7... Ne4 {[%clk 0:02:54.9]} 8. e3 {[%clk 0:02:47.2]} 8...
Nd7 {[%clk 0:02:51.9]} 9. Nbd2 {[%clk 0:02:47.5]} 9... Ndf6 {[%clk 0:02:51.9]}
10. Ne1 {[%clk 0:02:44.6]} 10... Bd7 {[%clk 0:02:37.8]} 11. Nd3 {[%clk
0:02:40.9]} 11... Qe8 {[%clk 0:02:28.2]} 12. c4 {[%clk 0:02:35.8]} 12... Nxd2
{[%clk 0:02:03.9]} 13. Qxd2 {[%clk 0:02:34.5]} 13... Ne4 {[%clk 0:02:04.5]} 14.
Qe2 {[%clk 0:02:30.9]} 14... g5 {[%clk 0:01:52]} 15. f3 {[%clk 0:02:24.9]} 15...
Nf6 {[%clk 0:01:50.3]} 16. e4 {[%clk 0:02:24.9]} 16... Qf7 {[%clk 0:01:43.8]}
17. e5 {[%clk 0:02:12.8]} 17... Ne8 {[%clk 0:01:38.3]} 18. f4 {[%clk 0:02:11.8]}
18... Rb8 {[%clk 0:01:21.1]} 19. d5 {[%clk 0:02:07.7]} 19... Ng7 {[%clk
0:01:15]} 20. Rae1 {[%clk 0:02:04.1]} 20... Rfe8 {[%clk 0:01:10.9]} 21. Qd2
{[%clk 0:01:59.7]} 21... b5 {[%clk 0:00:50]} 22. Ba1 {[%clk 0:01:22]} 22... g4
{[%clk 0:00:41.5]} 23. Qa5 {[%clk 0:01:15.3]} 23... bxc4 {[%clk 0:00:40.6]} 24.
bxc4 {[%clk 0:01:14.7]} 24... Rb7 {[%clk 0:00:37.9]} 25. c5 {[%clk 0:01:05.9]}
25... Bb5 {[%clk 0:00:15.7]} 26. dxe6 {[%clk 0:00:49.6]} 26... Qxe6 {[%clk
0:00:08.8]} 27. exd6 {[%clk 0:00:46.6]} 27... Qc4 {[%clk 0:00:02.1]} 28. Rxe7
{[%clk 0:00:40.7]} 28... Qxd3 {[%clk 0:00:02.4]} 29. Rxg7+ {[%clk 0:00:40.2]}
1-0

[Event "*** Titled Tuesday Blitz"]
[Site "Chess.com"]
[Date "2020.05.05"]
[Round "3"]
[White "Ranindu2003"]
[Black "sm_sharon"]
[Result "1-0"]
[WhiteElo "2499"]
[BlackElo "2211"]
[TimeControl "180+1"]
[EndTime "10:28:51 PDT"]
[Termination "Ranindu2003 won on time"]

1. e4 {[%clk 0:03:00.3]} 1... e6 {[%clk 0:02:58.6]} 2. d4 {[%clk 0:02:59.1]}
2... d5 {[%clk 0:02:58.8]} 3. Nd2 {[%clk 0:02:59.8]} 3... dxe4 {[%clk
0:02:58.4]} 4. Nxe4 {[%clk 0:03:00.7]} 4... Nd7 {[%clk 0:02:56.8]} 5. Nf3 {[%clk
0:03:00.6]} 5... Ngf6 {[%clk 0:02:57.7]} 6. Bd3 {[%clk 0:03:01.1]} 6... Be7
{[%clk 0:02:57.3]} 7. O-O {[%clk 0:03:00]} 7... b6 {[%clk 0:02:57.6]} 8. Qe2
{[%clk 0:02:58.9]} 8... Bb7 {[%clk 0:02:57.8]} 9. Rd1 {[%clk 0:02:59.4]} 9...
O-O {[%clk 0:02:57.4]} 10. c4 {[%clk 0:02:58.7]} 10... Nxe4 {[%clk 0:02:56]} 11.
Bxe4 {[%clk 0:02:59.6]} 11... Bxe4 {[%clk 0:02:56]} 12. Qxe4 {[%clk 0:03:00.5]}
12... Nf6 {[%clk 0:02:56.2]} 13. Qe2 {[%clk 0:02:59.6]} 13... c6 {[%clk
0:02:56.1]} 14. Bf4 {[%clk 0:02:59.4]} 14... Bd6 {[%clk 0:02:55.1]} 15. Ne5
{[%clk 0:02:59.5]} 15... Bxe5 {[%clk 0:02:53.4]} 16. dxe5 {[%clk 0:02:53.5]}
16... Nd7 {[%clk 0:02:52.5]} 17. Rd6 {[%clk 0:02:53.8]} 17... Qc7 {[%clk
0:02:41]} 18. Rad1 {[%clk 0:02:53.2]} 18... Nc5 {[%clk 0:02:37.6]} 19. b4 {[%clk
0:02:49.9]} 19... Nb7 {[%clk 0:02:37]} 20. Rd7 {[%clk 0:02:48.9]} 20... Qc8
{[%clk 0:02:36.4]} 21. Qe4 {[%clk 0:02:36.7]} 21... a5 {[%clk 0:02:30.5]} 22. a3
{[%clk 0:02:30]} 22... axb4 {[%clk 0:02:30.2]} 23. axb4 {[%clk 0:02:30.9]} 23...
Ra4 {[%clk 0:02:30.1]} 24. Bg5 {[%clk 0:02:25.8]} 24... Rxb4 {[%clk 0:02:28.5]}
25. Qh4 {[%clk 0:02:12.4]} 25... Nc5 {[%clk 0:02:25.7]} 26. R7d2 {[%clk
0:01:51.8]} 26... b5 {[%clk 0:02:21.7]} 27. Be7 {[%clk 0:01:31.1]} 27... Rxc4
{[%clk 0:02:20.6]} 28. Bxf8 {[%clk 0:00:57.6]} 28... Rxh4 {[%clk 0:01:25.5]} 29.
Bxc5 {[%clk 0:00:56]} 1-0

[Event "*** Titled Tuesday Blitz"]
[Site "Chess.com"]
[Date "2020.05.05"]
[Round "3"]
[White "Happy1712Drummer"]
[Black "NodariousBIG"]
[Result "1-0"]
[WhiteElo "2554"]
[BlackElo "2715"]
[TimeControl "180+1"]
[EndTime "10:28:52 PDT"]
[Termination "Happy1712Drummer won by resignation"]

1. Nf3 {[%clk 0:02:48.9]} 1... d5 {[%clk 0:02:59.4]} 2. c4 {[%clk 0:02:49.8]}
2... d4 {[%clk 0:02:59.2]} 3. d3 {[%clk 0:02:49.2]} 3... Nc6 {[%clk 0:02:59.1]}
4. g3 {[%clk 0:02:50.1]} 4... e5 {[%clk 0:02:59.3]} 5. Bg2 {[%clk 0:02:50.6]}
5... f6 {[%clk 0:02:59.8]} 6. O-O {[%clk 0:02:48.4]} 6... Be6 {[%clk 0:03:00]}
7. a3 {[%clk 0:02:46.4]} 7... a5 {[%clk 0:02:58.6]} 8. e3 {[%clk 0:02:43.7]}
8... Bc5 {[%clk 0:02:41.4]} 9. exd4 {[%clk 0:02:40.6]} 9... Nxd4 {[%clk
0:02:41.8]} 10. Nxd4 {[%clk 0:02:30.2]} 10... Bxd4 {[%clk 0:02:42.7]} 11. Bxb7
{[%clk 0:02:20.3]} 11... Rb8 {[%clk 0:02:42.9]} 12. Bg2 {[%clk 0:02:15.6]} 12...
h5 {[%clk 0:02:26.8]} 13. Nc3 {[%clk 0:01:54.5]} 13... h4 {[%clk 0:02:25.1]} 14.
Nb5 {[%clk 0:01:36]} 14... hxg3 {[%clk 0:02:17.3]} 15. hxg3 {[%clk 0:01:35.9]}
15... Rxb5 {[%clk 0:02:09.6]} 16. cxb5 {[%clk 0:01:33]} 16... Bd5 {[%clk
0:02:09.7]} 17. Qg4 {[%clk 0:01:03.3]} 17... Kf7 {[%clk 0:01:54.8]} 18. Bxd5+
{[%clk 0:00:38]} 18... Qxd5 {[%clk 0:01:54.2]} 19. Qe4 {[%clk 0:00:38.2]} 19...
Qd7 {[%clk 0:01:54.3]} 20. Be3 {[%clk 0:00:37]} 20... Qh3 {[%clk 0:01:33.9]} 21.
Qd5+ {[%clk 0:00:33.2]} 21... Kg6 {[%clk 0:01:34.1]} 22. Qg2 {[%clk 0:00:32.8]}
22... Qh5 {[%clk 0:01:19.2]} 23. Bxd4 {[%clk 0:00:32.4]} 23... exd4 {[%clk
0:01:20.1]} 24. Rac1 {[%clk 0:00:29.8]} 24... Ne7 {[%clk 0:01:18.4]} 25. Rxc7
{[%clk 0:00:27.9]} 25... Nd5 {[%clk 0:00:35.8]} 26. Rc5 {[%clk 0:00:26.8]} 26...
Rd8 {[%clk 0:00:31.9]} 27. b6 {[%clk 0:00:25.6]} 27... Qe5 {[%clk 0:00:24.8]}
28. b7 {[%clk 0:00:21.8]} 1-0

[Event "*** Titled Tuesday Blitz"]
[Site "Chess.com"]
[Date "2020.05.05"]
[Round "3"]
[White "Gvetadze"]
[Black "Andrei_Belozerov"]
[Result "0-1"]
[WhiteElo "2375"]
[BlackElo "2591"]
[TimeControl "180+1"]
[EndTime "10:28:52 PDT"]
[Termination "Andrei_Belozerov won by checkmate"]

1. Nf3 {[%clk 0:03:00.9]} 1... d5 {[%clk 0:02:57.3]} 2. g3 {[%clk 0:03:01.8]}
2... Bg4 {[%clk 0:02:54]} 3. Bg2 {[%clk 0:03:01.8]} 3... Nd7 {[%clk 0:02:53.9]}
4. O-O {[%clk 0:03:01.9]} 4... Ngf6 {[%clk 0:02:53.2]} 5. d3 {[%clk 0:03:01.1]}
5... c6 {[%clk 0:02:52]} 6. Nbd2 {[%clk 0:03:01.1]} 6... e5 {[%clk 0:02:51.5]}
7. c4 {[%clk 0:03:00.8]} 7... d4 {[%clk 0:02:47.4]} 8. a3 {[%clk 0:02:59.3]}
8... a5 {[%clk 0:02:47.1]} 9. Rb1 {[%clk 0:02:59.1]} 9... a4 {[%clk 0:02:44.2]}
10. b4 {[%clk 0:02:58.7]} 10... axb3 {[%clk 0:02:43.9]} 11. Rxb3 {[%clk
0:02:58.3]} 11... Qc7 {[%clk 0:02:41.2]} 12. h3 {[%clk 0:02:56.1]} 12... Bh5
{[%clk 0:02:40.3]} 13. g4 {[%clk 0:02:53.9]} 13... Bg6 {[%clk 0:02:39.5]} 14.
Nh4 {[%clk 0:02:54]} 14... Be7 {[%clk 0:02:39]} 15. Nxg6 {[%clk 0:02:53.7]}
15... hxg6 {[%clk 0:02:38.7]} 16. Qc2 {[%clk 0:02:46.7]} 16... O-O {[%clk
0:02:36.7]} 17. Nf3 {[%clk 0:02:40.2]} 17... Nc5 {[%clk 0:02:34.1]} 18. Rb1
{[%clk 0:02:39.4]} 18... Nfd7 {[%clk 0:02:33.4]} 19. Ng5 {[%clk 0:02:26.4]}
19... Bxg5 {[%clk 0:02:25.8]} 20. Bxg5 {[%clk 0:02:25.6]} 20... Rxa3 {[%clk
0:02:25.6]} 21. f4 {[%clk 0:02:25.5]} 21... f6 {[%clk 0:02:17.6]} 22. Bh4 {[%clk
0:02:21.6]} 22... exf4 {[%clk 0:02:17.2]} 23. Qb2 {[%clk 0:02:21.9]} 23... Rc3
{[%clk 0:02:05.6]} 24. Bf2 {[%clk 0:02:16.7]} 24... Qe5 {[%clk 0:02:04.5]} 25.
Rbc1 {[%clk 0:02:06.9]} 25... Re8 {[%clk 0:02:02.6]} 26. Bf3 {[%clk 0:02:02]}
26... Rb3 {[%clk 0:01:42]} 27. Qxd4 {[%clk 0:02:00.3]} 27... Qxd4 {[%clk
0:01:39.4]} 28. Bxd4 {[%clk 0:02:00.3]} 28... Ne6 {[%clk 0:01:39.5]} 29. Bf2
{[%clk 0:01:54.2]} 29... Ne5 {[%clk 0:01:38.9]} 30. Rb1 {[%clk 0:01:25.7]} 30...
Nxf3+ {[%clk 0:01:35.9]} 31. exf3 {[%clk 0:01:25.1]} 31... Rxd3 {[%clk 0:01:36]}
32. Rxb7 {[%clk 0:01:23.8]} 32... Rxf3 {[%clk 0:01:34.3]} 33. Re1 {[%clk
0:01:18.3]} 33... Rxh3 {[%clk 0:01:31.8]} 34. Rb6 {[%clk 0:01:16.4]} 34... Rc3
{[%clk 0:01:26.9]} 35. Rxc6 {[%clk 0:01:15.9]} 35... Kf7 {[%clk 0:01:27]} 36. c5
{[%clk 0:01:13.8]} 36... g5 {[%clk 0:01:25.1]} 37. Rd1 {[%clk 0:01:07.3]} 37...
f3 {[%clk 0:01:23]} 38. Rd7+ {[%clk 0:00:52.5]} 38... Kg6 {[%clk 0:01:22.5]} 39.
Kh2 {[%clk 0:00:46.4]} 39... Nf4 {[%clk 0:01:18.4]} 40. Kg3 {[%clk 0:00:42.1]}
40... Rh8 {[%clk 0:01:17.1]} 41. Bd4 {[%clk 0:00:41.5]} 41... Rh3+ {[%clk
0:01:15.2]} 42. Kf2 {[%clk 0:00:41.7]} 42... Rc2+ {[%clk 0:01:15.4]} 43. Kg1
{[%clk 0:00:39.3]} 43... Ne2+ {[%clk 0:01:13.5]} 44. Kf1 {[%clk 0:00:37.3]}
44... Nxd4 {[%clk 0:01:12.6]} 45. Rxd4 {[%clk 0:00:34.6]} 45... Rh1# {[%clk
0:01:11.8]} 0-1

[Event "*** Titled Tuesday Blitz"]
[Site "Chess.com"]
[Date "2020.05.05"]
[Round "3"]
[White "platy3"]
[Black "Kildepiotr"]
[Result "1-0"]
[WhiteElo "2711"]
[BlackElo "2481"]
[TimeControl "180+1"]
[EndTime "10:28:56 PDT"]
[Termination "platy3 won by resignation"]

1. e4 {[%clk 0:03:00.9]} 1... g6 {[%clk 0:02:59.5]} 2. d4 {[%clk 0:02:59.7]}
2... Bg7 {[%clk 0:02:59.8]} 3. c4 {[%clk 0:03:00.3]} 3... d6 {[%clk 0:02:59.4]}
4. Nc3 {[%clk 0:02:59.5]} 4... Nd7 {[%clk 0:02:59.6]} 5. h3 {[%clk 0:02:59.4]}
5... e5 {[%clk 0:02:59.6]} 6. d5 {[%clk 0:02:59.2]} 6... Bh6 {[%clk 0:02:54.9]}
7. b4 {[%clk 0:02:53.9]} 7... a5 {[%clk 0:02:52.6]} 8. Bxh6 {[%clk 0:02:53.7]}
8... Nxh6 {[%clk 0:02:52]} 9. a3 {[%clk 0:02:54.1]} 9... O-O {[%clk 0:02:50]}
10. Nf3 {[%clk 0:02:39]} 10... f5 {[%clk 0:02:48.9]} 11. Bd3 {[%clk 0:02:36.8]}
11... Nf6 {[%clk 0:02:43.4]} 12. Nd2 {[%clk 0:02:19.6]} 12... axb4 {[%clk
0:02:39.5]} 13. axb4 {[%clk 0:02:19.4]} 13... Rxa1 {[%clk 0:02:39.8]} 14. Qxa1
{[%clk 0:02:20.3]} 14... Nh5 {[%clk 0:02:33.1]} 15. g3 {[%clk 0:02:16.1]} 15...
fxe4 {[%clk 0:02:29.4]} 16. Ncxe4 {[%clk 0:02:05.7]} 16... Nf5 {[%clk
0:02:27.9]} 17. c5 {[%clk 0:02:02.8]} 17... Nd4 {[%clk 0:02:25.9]} 18. Qa5
{[%clk 0:01:50.8]} 18... Nf6 {[%clk 0:02:06.1]} 19. cxd6 {[%clk 0:01:45.4]}
19... Nxe4 {[%clk 0:02:05.5]} 20. Nxe4 {[%clk 0:01:36.5]} 20... b6 {[%clk
0:01:42.2]} 21. Qa2 {[%clk 0:00:36]} 21... cxd6 {[%clk 0:01:35.9]} 22. Kf1
{[%clk 0:00:35.2]} 22... Bf5 {[%clk 0:01:13.2]} 23. Kg2 {[%clk 0:00:33.9]} 23...
Qd7 {[%clk 0:01:13]} 24. Qd2 {[%clk 0:00:17.4]} 24... Kg7 {[%clk 0:01:03]} 25.
g4 {[%clk 0:00:12.8]} 25... Bxe4+ {[%clk 0:01:02.7]} 26. Bxe4 {[%clk 0:00:13.7]}
26... Rf4 {[%clk 0:00:56.9]} 27. f3 {[%clk 0:00:13.7]} 27... h5 {[%clk
0:00:51.7]} 28. gxh5 {[%clk 0:00:10.7]} 28... gxh5 {[%clk 0:00:47.7]} 29. Kh2
{[%clk 0:00:10.9]} 29... Nxf3+ {[%clk 0:00:33.7]} 30. Bxf3 {[%clk 0:00:10.7]}
30... Rxf3 {[%clk 0:00:33.9]} 31. Qg2+ {[%clk 0:00:10.5]} 1-0

[Event "*** Titled Tuesday Blitz"]
[Site "Chess.com"]
[Date "2020.05.05"]
[Round "3"]
[White "Alohamora11"]
[Black "GM_Levan_Pantsulaia"]
[Result "0-1"]
[WhiteElo "2507"]
[BlackElo "2764"]
[TimeControl "180+1"]
[EndTime "10:29:00 PDT"]
[Termination "GM_Levan_Pantsulaia won by resignation"]

1. e4 {[%clk 0:03:00.9]} 1... c5 {[%clk 0:02:59.5]} 2. Nf3 {[%clk 0:03:01.1]}
2... e6 {[%clk 0:03:00]} 3. d4 {[%clk 0:03:01.3]} 3... cxd4 {[%clk 0:03:00.9]}
4. Nxd4 {[%clk 0:03:02.2]} 4... a6 {[%clk 0:03:01.5]} 5. Nc3 {[%clk 0:03:02.2]}
5... b5 {[%clk 0:03:00.6]} 6. g3 {[%clk 0:03:02.5]} 6... Bb7 {[%clk 0:02:59.8]}
7. Bg2 {[%clk 0:03:02.1]} 7... Nf6 {[%clk 0:03:00.2]} 8. a3 {[%clk 0:02:59.1]}
8... d6 {[%clk 0:02:40.4]} 9. O-O {[%clk 0:02:58.7]} 9... Nbd7 {[%clk
0:02:37.5]} 10. Qe2 {[%clk 0:02:50.7]} 10... Qc7 {[%clk 0:02:35.9]} 11. f4
{[%clk 0:02:44.6]} 11... Be7 {[%clk 0:02:31.5]} 12. g4 {[%clk 0:02:19.1]} 12...
g6 {[%clk 0:02:18.7]} 13. g5 {[%clk 0:02:11.5]} 13... Nh5 {[%clk 0:02:18]} 14.
f5 {[%clk 0:01:56.5]} 14... Qb6 {[%clk 0:01:48.9]} 15. Be3 {[%clk 0:01:48.7]}
15... Bxg5 {[%clk 0:01:47.7]} 16. fxe6 {[%clk 0:01:32.1]} 16... Bxe3+ {[%clk
0:01:41.4]} 17. Qxe3 {[%clk 0:01:31.4]} 17... fxe6 {[%clk 0:01:42.3]} 18. Rad1
{[%clk 0:00:59]} 18... e5 {[%clk 0:01:38.3]} 19. Nd5 {[%clk 0:00:42.7]} 19...
Bxd5 {[%clk 0:01:35.8]} 20. exd5 {[%clk 0:00:42.5]} 20... Rf8 {[%clk 0:01:09.5]}
21. Rxf8+ {[%clk 0:00:31.9]} 21... Nxf8 {[%clk 0:01:10.4]} 22. Kh1 {[%clk
0:00:26.5]} 22... Nf4 {[%clk 0:01:04.1]} 23. Qe1 {[%clk 0:00:17]} 23... Kf7
{[%clk 0:00:56.8]} 24. Nc6 {[%clk 0:00:15.2]} 24... Kg7 {[%clk 0:00:48.3]} 25.
Qh4 {[%clk 0:00:14.6]} 25... Re8 {[%clk 0:00:46.1]} 26. Qg5 {[%clk 0:00:07.9]}
26... h6 {[%clk 0:00:44.2]} 27. Qg3 {[%clk 0:00:07.8]} 27... g5 {[%clk
0:00:41.2]} 28. h4 {[%clk 0:00:07.9]} 28... N8g6 {[%clk 0:00:41.4]} 29. hxg5
{[%clk 0:00:08.2]} 29... hxg5 {[%clk 0:00:42.3]} 30. Be4 {[%clk 0:00:06.9]}
30... Rh8+ {[%clk 0:00:40.4]} 0-1

[Event "*** Titled Tuesday Blitz"]
[Site "Chess.com"]
[Date "2020.05.05"]
[Round "3"]
[White "SGchess01"]
[Black "albi1999"]
[Result "1-0"]
[WhiteElo "2800"]
[BlackElo "2601"]
[TimeControl "180+1"]
[EndTime "10:29:01 PDT"]
[Termination "SGchess01 won by checkmate"]

1. Nf3 {[%clk 0:02:59.1]} 1... d5 {[%clk 0:02:59.9]} 2. g3 {[%clk 0:02:58.4]}
2... Bg4 {[%clk 0:02:59.5]} 3. Bg2 {[%clk 0:02:58.4]} 3... Nd7 {[%clk 0:03:00]}
4. O-O {[%clk 0:02:58.6]} 4... c6 {[%clk 0:03:00.5]} 5. d4 {[%clk 0:02:58.1]}
5... e6 {[%clk 0:03:00.3]} 6. Nbd2 {[%clk 0:02:57.9]} 6... Ngf6 {[%clk
0:03:00.8]} 7. Re1 {[%clk 0:02:57.9]} 7... Be7 {[%clk 0:03:01.1]} 8. e4 {[%clk
0:02:58]} 8... O-O {[%clk 0:03:01.6]} 9. c3 {[%clk 0:02:57.3]} 9... h6 {[%clk
0:03:01.6]} 10. e5 {[%clk 0:02:54.4]} 10... Nh7 {[%clk 0:03:01.5]} 11. Nb3
{[%clk 0:02:54.5]} 11... Ng5 {[%clk 0:02:52.1]} 12. Bxg5 {[%clk 0:02:40.3]}
12... Bxg5 {[%clk 0:02:35.5]} 13. h4 {[%clk 0:02:39.7]} 13... Be7 {[%clk
0:02:34.9]} 14. Nc1 {[%clk 0:02:39.2]} 14... c5 {[%clk 0:02:34]} 15. Nd3 {[%clk
0:02:31.9]} 15... Qb6 {[%clk 0:02:30.8]} 16. Nf4 {[%clk 0:02:31.7]} 16... Qxb2
{[%clk 0:02:22.2]} 17. Rb1 {[%clk 0:02:24.6]} 17... Qxc3 {[%clk 0:02:21.5]} 18.
Rxb7 {[%clk 0:02:24.6]} 18... Rfd8 {[%clk 0:02:18.1]} 19. Re3 {[%clk 0:01:52.4]}
19... Qa5 {[%clk 0:02:15.8]} 20. Bh3 {[%clk 0:01:43.6]} 20... cxd4 {[%clk
0:02:07.6]} 21. Reb3 {[%clk 0:01:33.9]} 21... Bxf3 {[%clk 0:01:41.9]} 22. Qxf3
{[%clk 0:01:31.1]} 22... Qe1+ {[%clk 0:01:42.3]} 23. Kg2 {[%clk 0:01:26.9]}
23... Nxe5 {[%clk 0:01:42.5]} 24. Qh5 {[%clk 0:01:17.1]} 24... Qe4+ {[%clk
0:01:37.8]} 25. f3 {[%clk 0:00:52.8]} 25... Qc2+ {[%clk 0:01:36.6]} 26. Kh1
{[%clk 0:00:53.2]} 26... Qd1+ {[%clk 0:01:16]} 27. Kh2 {[%clk 0:00:50.9]} 27...
g6 {[%clk 0:00:52.5]} 28. Qxe5 {[%clk 0:00:49.3]} 28... Bd6 {[%clk 0:00:44.7]}
29. Qf6 {[%clk 0:00:47]} 29... Rf8 {[%clk 0:00:38.8]} 30. Bxe6 {[%clk
0:00:34.7]} 30... Qc2+ {[%clk 0:00:19.7]} 31. Ng2 {[%clk 0:00:30.2]} 31... fxe6
{[%clk 0:00:13.5]} 32. Qg7# {[%clk 0:00:29.6]} 1-0

[Event "*** Titled Tuesday Blitz"]
[Site "Chess.com"]
[Date "2020.05.05"]
[Round "3"]
[White "queen_iryna"]
[Black "Unknown_IM"]
[Result "0-1"]
[WhiteElo "2292"]
[BlackElo "2530"]
[TimeControl "180+1"]
[EndTime "10:29:01 PDT"]
[Termination "Unknown_IM won by resignation"]

1. d4 {[%clk 0:03:00.9]} 1... Nf6 {[%clk 0:02:55.1]} 2. Bg5 {[%clk 0:03:00.8]}
2... Ne4 {[%clk 0:02:53.6]} 3. Bf4 {[%clk 0:03:00.7]} 3... d5 {[%clk 0:02:48.5]}
4. f3 {[%clk 0:03:00.7]} 4... Nf6 {[%clk 0:02:47.6]} 5. Nc3 {[%clk 0:03:01.2]}
5... e6 {[%clk 0:02:41.7]} 6. e4 {[%clk 0:03:00.4]} 6... dxe4 {[%clk 0:02:39.9]}
7. fxe4 {[%clk 0:03:01.3]} 7... Bb4 {[%clk 0:02:39.7]} 8. Qd3 {[%clk 0:02:58.7]}
8... Nc6 {[%clk 0:02:29.8]} 9. Nf3 {[%clk 0:02:56.7]} 9... h6 {[%clk 0:02:23.8]}
10. Be2 {[%clk 0:02:41]} 10... O-O {[%clk 0:01:57.8]} 11. e5 {[%clk 0:02:28.2]}
11... Nd5 {[%clk 0:01:55.1]} 12. Bd2 {[%clk 0:02:28.1]} 12... f6 {[%clk
0:01:48.3]} 13. exf6 {[%clk 0:02:12.8]} 13... Qxf6 {[%clk 0:01:44.8]} 14. Nxd5
{[%clk 0:02:08.8]} 14... Bxd2+ {[%clk 0:01:44.1]} 15. Qxd2 {[%clk 0:02:05.8]}
15... exd5 {[%clk 0:01:44.5]} 16. O-O-O {[%clk 0:02:02.6]} 16... Bf5 {[%clk
0:01:43.3]} 17. Bd3 {[%clk 0:02:01.1]} 17... Nxd4 {[%clk 0:01:25.1]} 18. Bxf5
{[%clk 0:01:56.3]} 18... Nxf5 {[%clk 0:01:21.4]} 19. Qxd5+ {[%clk 0:01:55.6]}
19... Kh8 {[%clk 0:01:21.8]} 20. Qe5 {[%clk 0:01:31.7]} 20... Qg6 {[%clk
0:01:15.1]} 21. Rhg1 {[%clk 0:01:15.6]} 21... Rfe8 {[%clk 0:01:12.5]} 22. Qc5
{[%clk 0:01:10.5]} 22... b6 {[%clk 0:01:05.2]} 23. Qc3 {[%clk 0:01:06.3]} 23...
c5 {[%clk 0:00:59.9]} 24. Kb1 {[%clk 0:01:04.7]} 24... Rad8 {[%clk 0:00:55.8]}
25. Ne5 {[%clk 0:00:59]} 25... Rxd1+ {[%clk 0:00:53.4]} 26. Rxd1 {[%clk
0:00:59]} 26... Qxg2 {[%clk 0:00:51.9]} 27. a3 {[%clk 0:00:38.8]} 27... Nd4
{[%clk 0:00:43.2]} 28. Nf7+ {[%clk 0:00:31.1]} 28... Kg8 {[%clk 0:00:40.4]} 29.
Nd6 {[%clk 0:00:28.4]} 29... Re6 {[%clk 0:00:26.3]} 30. Nc4 {[%clk 0:00:21.1]}
30... Re2 {[%clk 0:00:22.5]} 31. Ne3 {[%clk 0:00:19.1]} 31... Rxe3 {[%clk
0:00:22.3]} 32. Qxe3 {[%clk 0:00:17.8]} 32... Qxc2+ {[%clk 0:00:22.8]} 0-1